Cogmind - Beta 13 @@@ ROGUE MODE // 2024.05.28 @ 11:13:49 Player: Zeldest Result: Destroyed by H-66 Slayer with Gauss Rifle Performance ------------- Evolutions (5) 2500 Regions Visited (9) 1800 Robots Destroyed (20) 100 Value Destroyed (686) 686 Prototype IDs (1) 20 Alien Tech Used (0) 0 Bonus (200) 200 TOTAL SCORE: 5306 Bonus ------- Entered Garrisons 200 Cogmind --------- Core Integrity 0/1000 Matter 55/300 Energy 99/100 System Corruption 0% Temperature Cool (0) Movement Core (50) Location -5/Upper Caves Parts ------- > --- POWER (2) -------- (None) > --- PROPULSION (5) --- (None) > --- UTILITY (8) ------ Advanced Visual Processing Unit Advanced Signal Interpreter > --- WEAPON (2) ------- (None) > --- INVENTORY (5) ---- (None) Peak State ------------ > --- POWER ------------ Fission Core Fission Core > --- PROPULSION ------- Xenon Bombardment Thruster Xenon Bombardment Thruster Xenon Bombardment Thruster Xenon Bombardment Thruster > --- UTILITY ---------- Advanced Visual Processing Unit Advanced Signal Interpreter Melee Analysis Suite Transmission Jammer > --- WEAPON ----------- Hammer > --- INVENTORY -------- Fission Core [Rating: 42] Favorites ----------- Power Light Ion Engine Engine Light Ion Engine Power Core Fission Core Reactor Light Antimatter Reactor Propulsion Xenon Bombardment Thruster Treads Light Treads Leg Aluminum Leg Hover Unit Improved Hover Unit Flight Unit Xenon Bombardment Thruster Utility Advanced Visual Processing Unit Device Transmission Jammer Storage Small Storage Unit Processor Advanced Visual Processing Unit Protection Improved Light Armor Plating Weapon Hammer Energy Cannon Particle Cannon Ballistic Gun Autogun Launcher Mini Grenade Launcher Special Weapon Remote Datajack Impact Weapon Hammer Slashing Weapon Katana Build | -11 -10 -9 -9 -8 -7 -6 -6 -5 -5 ------- Run | Yrd Mat Mat Sto Mat Fac Fac Gar Fac Upp Slots Evolved 10 | . . 2 . 2 2 2 . 2 . Power 1 | . . . . . . . . 1 . Propulsion 3 | . . 1 . 1 1 . . . . Utility 6 | . . 1 . 1 1 2 . 1 . Weapon . | . . . . . . . . . . Parts Attached 56 | 4 11 3 6 9 9 9 1 3 1 Power 15 | 1 2 . 3 1 2 3 . 2 1 Engine 10 | 1 2 . 3 1 1 2 . . . Core 4 | . . . . . 1 1 . 2 . Reactor 1 | . . . . . . . . . 1 Propulsion 14 | 2 2 1 1 1 2 3 1 1 . Treads 1 | . . . . . 1 . . . . Leg 2 | 2 . . . . . . . . . Wheel . | . . . . . . . . . . Hover 1 | . . 1 . . . . . . . Flight 10 | . 2 . 1 1 1 3 1 1 . Utility 9 | 1 . . . 3 3 2 . . . Device 4 | . . . . 1 2 1 . . . Storage 1 | 1 . . . . . . . . . Processor 3 | . . . . 2 . 1 . . . Hackware . | . . . . . . . . . . Protection 1 | . . . . . 1 . . . . Artifact . | . . . . . . . . . . Weapon 18 | . 7 2 2 4 2 1 . . . Energy Gun . | . . . . . . . . . . Energy Cannon 1 | . . . . 1 . . . . . Ballistic Gun 6 | . 4 1 . 1 . . . . . Ballistic Cannon . | . . . . . . . . . . Launcher 3 | . 2 . 1 . . . . . . Special Weapon 1 | . . . . . 1 . . . . Impact Weapon 6 | . 1 1 1 1 1 1 . . . Slashing Weapon 1 | . . . . 1 . . . . . Piercing Weapon . | . . . . . . . . . . Special Melee Weapon . | . . . . . . . . . . Unidentified Prototypes 1 | . . . 1 . . . . . . Parts Lost 22 | . . . 5 1 5 1 1 3 6 Power 5 | . . . 2 . 1 . . 1 1 Propulsion 9 | . . . 2 . 3 . . 1 3 Utility 4 | . . . . 1 . . 1 . 2 Weapon 4 | . . . 1 . 1 1 . 1 . Highest Loss Streak 5 | . . . 4 1 5 1 1 3 5 To Critical Strikes . | . . . . . . . . . . Average Slot Usage (%) 48 | . 37 40 33 41 62 62 63 61 23 Engine 6 | . 14 11 10 5 5 3 . . . Core 1 | . . . . . 1 2 6 10 1 Treads 1 | . . . . . 1 3 . . . Leg 1 | . 6 . . . . . . . . Flight 11 | . 9 11 11 14 10 9 20 22 5 Device 6 | . . . . . 11 14 9 5 2 Processor 10 | . . . . 11 15 15 20 17 12 Protection 1 | . . . . . 2 3 . . . Impact Weapon 4 | . . 9 7 7 2 5 6 4 . Slashing Weapon 1 | . . . . . 7 2 . . . Naked Turns . | . . . . . . . . . . Heaviest Build 23 | 8 14 5 5 6 20 21 15 23 12 Greatest Support 24 | 20 20 7 7 8 20 20 18 24 18 Greatest Overweight (x) 6 | . 1 . . . 6 1 . . 3 Average Overweight (x) . | . . . . . . . . . . Largest Inventory Capacity 8 | 8 8 5 5 5 5 5 5 5 5 Average Capacity 5 | 7 5 5 5 5 5 5 5 5 5 Most Carried 5 | 3 5 5 5 5 5 5 4 2 1 Average Carried 3 | 1 3 3 3 2 4 4 3 1 . Final Capacity 8 | 8 5 5 5 5 5 5 5 5 5 Final Carried 4 | 1 4 4 2 4 4 3 3 . . Class Distribution -------------------- 58% | Mutant 22% | Infiltrator-Mutant 15% | Infiltrator-Gladiator 4% | Sprinter Dominant Class ---------------- Mutant | -10/Materials Mutant | -9/Materials Mutant | -9/Storage Mutant | -8/Materials Infiltrator-Gladiator | -7/Factory Infiltrator-Mutant | -6/Factory Mutant | -6/Garrison Sprinter | -5/Factory Mutant | -5/Upper Caves Resources | -11 -10 -9 -9 -8 -7 -6 -6 -5 -5 ----------- Run | Yrd Mat Mat Sto Mat Fac Fac Gar Fac Upp Matter Collected 505 | 191 127 24 . 34 62 57 . . 10 Remotely 57 | . . . . . . 57 . . . Salvage Created 406 | . 173 24 44 46 62 57 . . . Parts 29 | . 11 . 8 4 3 3 . . . Haulers Intercepted . | . . . . . . . . . . Recyclers Shooed . | . . . . . . . . . . Parts Field Recycled . | . . . . . . . . . . Retrieved Matter . | . . . . . . . . . . Parts Self-Destructed . | . . . . . . . . . . Prevented . | . . . . . . . . . . Kills | -11 -10 -9 -9 -8 -7 -6 -6 -5 -5 ------- Run | Yrd Mat Mat Sto Mat Fac Fac Gar Fac Upp Combat Hostiles Destroyed 17 | . 7 . 5 3 1 1 . . . Melee 2 | . . . . . 1 1 . . . Guns 5 | . 3 . . 2 . . . . . Cannons 1 | . . . . 1 . . . . . AOE 9 | . 4 . 5 . . . . . . Classes Destroyed 5 | . 3 1 . . 1 . . . . Operator 1 | . 1 . . . . . . . . Watcher 2 | . . 1 1 . . . . . . Swarmer 10 | . 3 . 4 3 . . . . . Grunt 5 | . 4 . 1 . . . . . . Sentry 2 | . . . . . 1 1 . . . Best Kill Streak 6 | . 6 1 6 3 1 1 . . . Combat Bots Only 5 | . 5 . 5 3 1 1 . . . Max Kills in Single Turn 6 | . 3 1 6 1 1 1 . . . Gunslinging . | . . . . . . . . . . Exploded 5 | . 2 . 5 . . . . . . Melee 1 | . . . . . 1 1 . . . Uniques/NPCs Destroyed . | . . . . . . . . . . Combat | -11 -10 -9 -9 -8 -7 -6 -6 -5 -5 -------- Run | Yrd Mat Mat Sto Mat Fac Fac Gar Fac Upp Hostile Shots Fired 426 | . 14 . 49 23 103 64 25 37 111 Missed 183 | . 8 . 22 12 48 20 15 24 34 Damage Taken 3143 | . 265 . 420 111 395 341 164 239 1208 Core 1619 | . 77 . 176 55 152 85 58 37 979 Absorbed by Shields 20 | . . . . . . . 20 . . Regen/Repaired (Parts) 7 | . 7 . . . . . . . . Core Remaining (%) 79 | 100 69 . 56 90 78 . 83 . . Volleys Fired 18 | . 9 . 1 6 2 . . . . Largest 2 | . 2 . 1 2 1 . . . . Hottest 91 | . 53 . 30 91 5 . . . . Shots Fired 26 | . 11 . 1 12 2 . . . . Gun 15 | . 9 . . 6 . . . . . Cannon 6 | . . . . 6 . . . . . Launcher 3 | . 2 . 1 . . . . . . Special 2 | . . . . . 2 . . . . Kinetic 15 | . 9 . . 6 . . . . . Thermal 6 | . . . . 6 . . . . . Explosive 3 | . 2 . 1 . . . . . . Electromagnetic . | . . . . . . . . . . Robot Hit Streak 5 | . 5 . 3 3 1 . . . . Robot Miss Streak 1 | . 1 . . 1 1 . . . . Penetration Max . | . . . . . . . . . . Secondary Targets . | . . . . . . . . . . Shots Hit Robots 37 | . 8 1 8 7 5 8 . . . Core Hits 24 | . 11 . 7 3 2 1 . . . Critical Kills 1 | . . . . . . 1 . . . Critical Parts Destroyed 1 | . . 1 . . . . . . . Critical Strikes 2 | . . 1 . . . 1 . . . Smash 2 | . . 1 . . . 1 . . . Melee Attacks 22 | . . 1 8 . 4 8 1 . . Impact 16 | . . 1 8 . . 6 1 . . Slashing 6 | . . . . . 4 2 . . . Piercing . | . . . . . . . . . . Sneak Attacks . | . . . . . . . . . . Combat Hostiles . | . . . . . . . . . . Follow-up Attacks . | . . . . . . . . . . Damage Inflicted 1655 | . 454 37 723 118 133 190 . . . Guns 175 | . 98 . . 77 . . . . . Cannons 41 | . . . . 41 . . . . . Explosions 908 | . 356 . 552 . . . . . . Melee 531 | . . 37 171 . 133 190 . . . Ramming . | . . . . . . . . . . Kinetic 175 | . 98 . . 77 . . . . . Thermal 41 | . . . . 41 . . . . . Explosive 908 | . 356 . 552 . . . . . . Electromagnetic . | . . . . . . . . . . Impact 336 | . . 37 171 . . 128 . . . Slashing 195 | . . . . . 133 62 . . . Piercing . | . . . . . . . . . . Highest Corruption 2 | . . . . 2 . . . . . Average Corruption 2 | . . . . 2 . . . . . Corruption Purged . | . . . . . . . . . . Corruption Blocked . | . . . . . . . . . . Effects 1 | . . . . 1 . . . . . Heat Flow Errors 1 | . . . . 1 . . . . . Overload Shots . | . . . . . . . . . . Overflow Damage 167 | . . 37 130 . . . . . . Projectiles . | . . . . . . . . . . Explosions 118 | . . . 118 . . . . . . Melee 49 | . . 37 12 . . . . . . Knockbacks 3 | . . . 3 . . . . . . Impact 3 | . . . 3 . . . . . . Kinetic . | . . . . . . . . . . Secondary . | . . . . . . . . . . Self-Inflicted Damage 314 | . 209 . 105 . . . . . . Shots 6 | . 4 . 2 . . . . . . Rammed . | . . . . . . . . . . Targets Rammed . | . . . . . . . . . . Kicked . | . . . . . . . . . . Crushed . | . . . . . . . . . . Highest Temperature 181 | . 12 . 1 181 . . . 45 . Average Temperature 40 | . 6 . 1 62 . . . 27 . Received Heat Transfer 477 | . 24 . 120 27 114 102 33 57 . Siege Activations . | . . . . . . . . . . Robots Corrupted . | . . . . . . . . . . Combat Hostiles . | . . . . . . . . . . Parts Fried 2 | . . 2 . . . . . . . Impact Corruptions 2 | . . 1 1 . . . . . . Robots Melted . | . . . . . . . . . . Combat Hostiles . | . . . . . . . . . . Parts Melted . | . . . . . . . . . . Heat Transferred 74 | . . . . 74 . . . . . Parts Sabotaged . | . . . . . . . . . . Parts Stolen . | . . . . . . . . . . Parts Stripped . | . . . . . . . . . . Power Chain Reactions . | . . . . . . . . . . Alert | -11 -10 -9 -9 -8 -7 -6 -6 -5 -5 ------- Run | Yrd Mat Mat Sto Mat Fac Fac Gar Fac Upp Peak Influence 395 | . 339 180 355 395 269 267 197 296 . Initial 179 | . . 143 76 149 179 128 67 102 . Average 201 | . 247 156 198 259 239 165 139 157 . Maximum Alert Level 1 | . 1 . 1 1 1 1 . 1 . Low Security (%) 50 | 100 20 100 39 34 19 73 100 86 . Level 1 49 | . 79 . 60 65 80 26 . 13 . Level 2 . | . . . . . . . . . . Level 3 . | . . . . . . . . . . Level 4 . | . . . . . . . . . . Level 5 . | . . . . . . . . . . High Security . | . . . . . . . . . . Max Security . | . . . . . . . . . . Squads Dispatched 8 | . 2 . 2 . 2 1 . 1 . Investigation 1 | . . . 1 . . . . . . Extermination 1 | . . . . . 1 . . . . Reinforcement 6 | . 2 . 1 . 1 1 . 1 . Assault . | . . . . . . . . . . Garrison . | . . . . . . . . . . Intercept . | . . . . . . . . . . Searches Triggered . | . . . . . . . . . . Construction Impeded . | . . . . . . . . . . Haulers Reinforced . | . . . . . . . . . . Active Scanning Responses . | . . . . . . . . . . Cargo Convoy Interrupts . | . . . . . . . . . . Stealth | -11 -10 -9 -9 -8 -7 -6 -6 -5 -5 --------- Run | Yrd Mat Mat Sto Mat Fac Fac Gar Fac Upp Distress Signals 5 | . . . 2 1 . 2 . . . Communications Jammed . | . . . . . . . . . . Distress Signals . | . . . . . . . . . . Times Spotted 107 | . 13 2 19 15 6 10 8 20 14 Peak Tracking Total 15 | . 5 2 11 7 3 3 9 15 8 Tactical Retreats 20 | . 1 . 3 4 2 3 2 1 4 Traps | -11 -10 -9 -9 -8 -7 -6 -6 -5 -5 ------- Run | Yrd Mat Mat Sto Mat Fac Fac Gar Fac Upp Traps Triggered 3 | . . . 1 1 . . 1 . . Indirectly . | . . . . . . . . . . Trap Hack Attempts . | . . . . . . . . . . Triggered . | . . . . . . . . . . Disarmed . | . . . . . . . . . . Reprogrammed . | . . . . . . . . . . Reused . | . . . . . . . . . . Traps Extracted . | . . . . . . . . . . Installed . | . . . . . . . . . . Triggered . | . . . . . . . . . . Machines | -11 -10 -9 -9 -8 -7 -6 -6 -5 -5 ---------- Run | Yrd Mat Mat Sto Mat Fac Fac Gar Fac Upp Machines Disabled 7 | . 4 . 2 . . . 1 . . Max in Single Turn 2 | . 2 . 2 . . . 1 . . Garrison Relay 1 | . . . . . . . 1 . . Machines Repaired . | . . . . . . . . . . Machines Dismantled . | . . . . . . . . . . Machines Sabotaged . | . . . . . . . . . . Overloaded Fab Kills . | . . . . . . . . . . Hacking | -11 -10 -9 -9 -8 -7 -6 -6 -5 -5 --------- Run | Yrd Mat Mat Sto Mat Fac Fac Gar Fac Upp Machines Accessed 21 | . 3 . 3 5 2 6 . 2 . Terminals 17 | . 2 . 3 5 2 3 . 2 . Fabricators . | . . . . . . . . . . Repair Stations 1 | . 1 . . . . . . . . Recycling Units 1 | . . . . . . 1 . . . Scanalyzers 1 | . . . . . . 1 . . . Garrison Access 1 | . . . . . . 1 . . . Total Hacks 57 | . 6 . 8 17 5 17 . 4 . Successful 29 | . 2 . 5 11 1 9 . 1 . Failed 28 | . 4 . 3 6 4 8 . 3 . Catastrophic 4 | . . . 1 1 . 2 . . . Database Lockouts . | . . . . . . . . . . Manual 49 | . 3 . 9 17 5 11 . 4 . Terminals 46 | . 3 . 8 17 5 9 . 4 . Fabricators . | . . . . . . . . . . Repair Stations 3 | . 3 . . . . . . . . Recycling Units 4 | . . . . . . 4 . . . Scanalyzers 3 | . . . . . . 3 . . . Garrison Access 1 | . . . . . . 1 . . . Terminal Hacks 1 | . . . . . . 1 . . . Open DSF 1 | . . . . . . 1 . . . Fabricator Hacks . | . . . . . . . . . . Repair Station Hacks 2 | . 2 . . . . . . . . Scan Component 1 | . 1 . . . . . . . . Repair 1 | . 1 . . . . . . . . Recycling Unit Hacks . | . . . . . . . . . . Scanalyzer 2 | . . . . . . 2 . . . Insert Component 1 | . . . . . . 1 . . . Analyze 1 | . . . . . . 1 . . . Garrison Access Hacks 1 | . . . . . . 1 . . . Unlock Access 1 | . . . . . . 1 . . . Unauthorized Hacks 23 | . . . 5 11 1 5 . 1 . Terminals 21 | . . . 5 11 1 3 . 1 . Track 2 | . . . 1 1 . . . . . Assimilate 6 | . . . 1 4 . 1 . . . Botnet 11 | . . . 2 5 1 2 . 1 . Operators 2 | . . . 1 1 . . . . . Fabricators . | . . . . . . . . . . Repair Stations . | . . . . . . . . . . Recycling Units 2 | . . . . . . 2 . . . Reject 1 | . . . . . . 1 . . . Mask 1 | . . . . . . 1 . . . Scanalyzers . | . . . . . . . . . . Garrison Access . | . . . . . . . . . . Data Cores Recovered . | . . . . . . . . . . Used . | . . . . . . . . . . Hacking Detections 18 | . 3 . 3 4 2 4 . 2 . Full Trace Events 1 | . . . 1 . . . . . . Feedback Events . | . . . . . . . . . . Feedback Blocked . | . . . . . . . . . . Robot Schematics Acquired . | . . . . . . . . . . Robots Built . | . . . . . . . . . . Authchips . | . . . . . . . . . . Time . | . . . . . . . . . . Total Robot Build Rating . | . . . . . . . . . . Part Schematics Acquired 1 | . . . . . . 1 . . . Parts Built . | . . . . . . . . . . Authchips . | . . . . . . . . . . Time . | . . . . . . . . . . Total Part Build Rating . | . . . . . . . . . . Parts Repaired 1 | . 1 . . . . . . . . Time 26 | . 26 . . . . . . . . Parts Recycled . | . . . . . . . . . . Recycled Matter . | . . . . . . . . . . Retrieved Matter . | . . . . . . . . . . Retrieved Components . | . . . . . . . . . . Parts Scanalyzed 1 | . . . . . . 1 . . . Part Schematics Acquired 1 | . . . . . . 1 . . . Parts Damaged 1 | . . . . . . 1 . . . Bothacking | -11 -10 -9 -9 -8 -7 -6 -6 -5 -5 ------------ Run | Yrd Mat Mat Sto Mat Fac Fac Gar Fac Upp Used RIF Installer . | . . . . . . . . . . Robots Hacked 1 | . . . . . 1 . . . . Non-combat . | . . . . . . . . . . Combat 1 | . . . . . 1 . . . . Robot Hacks Applied 1 | . . . . . 1 . . . . parse_system 1 | . . . . . 1 . . . . Relay Couplers Released 5 | . . . . . . . 5 . . Machine Destruction 5 | . . . . . . . 5 . . Fabnet Peak Effective % . | . . . . . . . . . . Robots Rewired . | . . . . . . . . . . Allies Hacked . | . . . . . . . . . . Hacks Repelled . | . . . . . . . . . . Allies | -11 -10 -9 -9 -8 -7 -6 -6 -5 -5 -------- Run | Yrd Mat Mat Sto Mat Fac Fac Gar Fac Upp Total Allies . | . . . . . . . . . . Largest Group . | . . . . . . . . . . Highest-Rated Group . | . . . . . . . . . . Highest-Rated Ally . | . . . . . . . . . . Total Orders . | . . . . . . . . . . Ally Attacks . | . . . . . . . . . . Total Damage . | . . . . . . . . . . Kills . | . . . . . . . . . . Allies Corrupted . | . . . . . . . . . . Allies Melted . | . . . . . . . . . . Intel | -11 -10 -9 -9 -8 -7 -6 -6 -5 -5 ------- Run | Yrd Mat Mat Sto Mat Fac Fac Gar Fac Upp Robot Analysis Total . | . . . . . . . . . . Derelict Logs Recovered 1 | . . . . . . . . . 1 Drone Launches . | . . . . . . . . . . Drone Recoveries . | . . . . . . . . . . Exploration | -11 -10 -9 -9 -8 -7 -6 -6 -5 -5 ------------- Run | Yrd Mat Mat Sto Mat Fac Fac Gar Fac Upp Turns Passed 1899 | 43 338 114 138 190 315 431 66 94 170 Spaces Moved 3209 | 38 496 193 215 380 457 636 137 290 367 Core 193 | 15 . . . . 18 . . . 160 Treads 165 | . . . . . 55 110 . . . Legs 73 | 23 50 . . . . . . . . Wheels . | . . . . . . . . . . Hover 219 | . . 143 76 . . . . . . Flight 2559 | . 446 50 139 380 384 526 137 290 207 Fastest Speed 31 | 50 40 40 40 37 34 34 34 31 34 Average Speed 48 | 92 48 54 47 38 59 56 34 31 43 Slowest Speed 350 | 120 120 60 60 40 350 240 34 34 200 Overloaded Moves . | . . . . . . . . . . Propulsion Burnouts . | . . . . . . . . . . Robots Hopped 16 | . 2 . . . . 10 . 2 2 Cave-ins Triggered . | . . . . . . . . . . Exploration Rate (%) 28 | 3 41 16 46 42 15 18 32 11 57 Regions Visited 9 Branch Regions 2 Pre-discovered Areas . | . . . . . . . . . . Known Exits Taken 2 | . . . . . . 1 . 1 . Unknown Exits Taken 6 | 1 1 1 1 1 1 . . . . Scrap Searched 1 | . . . . . . . . . 1 Spaces Dug . | . . . . . . . . . . Terrain Destroyed 71 | . 71 . . . . . . . . Melee . | . . . . . . . . . . Projectile . | . . . . . . . . . . AOE 71 | . 71 . . . . . . . . Terrain Rammed . | . . . . . . . . . . Walls Destroyed . | . . . . . . . . . . Machines Disabled . | . . . . . . . . . . Actions | -11 -10 -9 -9 -8 -7 -6 -6 -5 -5 --------- Run | Yrd Mat Mat Sto Mat Fac Fac Gar Fac Upp Total 3483 | 46 586 199 236 412 492 690 154 291 377 Wait 112 | . 53 . 3 10 13 24 . . 9 Move 3169 | 37 491 192 214 379 456 616 136 285 363 Hop 16 | . 2 . . . . 10 . 2 2 Pick Up 46 | 5 9 2 2 7 8 11 1 . 1 Fast Attach . | . . . . . . . . . . Attach 43 | 4 8 3 4 6 8 6 . 3 1 Detach 9 | . 4 1 1 1 . 2 . . . Swap 13 | . 3 . 2 3 1 3 1 . . Drop 21 | . 7 . 1 . . 10 1 1 1 Fire 18 | . 9 . 1 6 2 . . . . Melee 22 | . . 1 8 . 4 8 1 . . Ram . | . . . . . . . . . . Kick . | . . . . . . . . . . Crush . | . . . . . . . . . . Escape Stasis 14 | . . . . . . . 14 . . Rewire . | . . . . . . . . . . Trap . | . . . . . . . . . . Miscellaneous . | . . . . . . . . . . Route ------- -11/Scrapyard -10/Materials -9/Materials -9/Storage -8/Materials -7/Factory -6/Factory -6/Garrison -5/Factory -5/Upper Caves History --------- Turn | Location | Event 18 | -11/Scrapyard | Discovered new exit (range 15) 44 | -11/Scrapyard | Entered Materials 250 | -10/Materials | Repaired Flight Unit 310 | -10/Materials | Build established: Mutant 378 | -10/Materials | Discovered new exit (range 4) 382 | -10/Materials | Entered another Materials area 382 | -9/Materials | Evolved 2 slots: Propulsion x1, Utility x1 434 | -9/Materials | Discovered new exit (range 5) 496 | -9/Materials | Entered Storage 594 | -9/Storage | Lost 4 parts (1p2n1w) 631 | -9/Storage | Discovered new exit (range 9) 634 | -9/Storage | Entered Materials 634 | -8/Materials | Evolved 2 slots: Propulsion x1, Utility x1 819 | -8/Materials | Discovered new exit (range 13) 824 | -8/Materials | Entered Factory 824 | -7/Factory | Evolved 2 slots: Propulsion x1, Utility x1 1057 | -7/Factory | Lost 5 parts (1p3n1w) 1132 | -7/Factory | Discovered new exit (range 4) 1139 | -7/Factory | Entered another Factory area 1139 | -6/Factory | Evolved 2 slots: Utility x2 1570 | -6/Factory | Identified exit to Garrison 1570 | -6/Factory | Entered Garrison 1578 | -6/Garrison | Garrison Relay disabled 1584 | -6/Garrison | Triggered checkpoint 1590 | -6/Garrison | Build established: Infiltrator-Mutant 1614 | -6/Garrison | Triggered checkpoint 1631 | -6/Garrison | Discovered new exit (range 10) 1636 | -6/Garrison | Identified exit to Factory 1636 | -6/Garrison | Entered Factory 1636 | -5/Factory | Evolved 2 slots: Power x1, Utility x1 1695 | -5/Factory | Spotted B-75 Beast 1728 | -5/Factory | Discovered new exit (range 5) 1729 | -5/Factory | Identified exit to Upper Caves 1730 | -5/Factory | Entered Upper Caves 1755 | -5/Upper Caves | Lost 3 parts (1p1n1w) 1780 | -5/Upper Caves | Learned Factory security intel 1843 | -5/Upper Caves | Lost 5 parts (3n2u) 1870 | -5/Upper Caves | Core integrity fell below 50% 1884 | -5/Upper Caves | Ambushed by research squad 1887 | -5/Upper Caves | Core integrity fell below 20% 1900 | -5/Upper Caves | Destroyed by H-66 Slayer with Gauss Rifle Last Messages --------------- 01774_ Found 25 Matter. 01774_ Melee Analysis Suite destroyed. 01778_ Xenon Bombardment Thruster destroyed. 01780_ Acquired derelict log, extracted data. Data stored: Factory security intel. 01785_ Xenon Bombardment Thruster destroyed. 01785_ Dropped Fission Core. 01800_ Acquired 6 matter. 01801_ Acquired 4 matter. 01805_ Xenon Bombardment Thruster destroyed. 01812_ Transmission Jammer destroyed. 01846_ Acquired Lgt. Antimatter Reactor. 01872_ Lgt. Antimatter Reactor destroyed. 01882_ Penetrated by Slug. 01883_ Slug penetrates Wall. 01884_ P-70 Sage: "UNIQUE TECHNOLOGY DETECTED, NEUTRALIZE FOR ANALYSIS." 01899_ Slug penetrates S-27 Virus. 01899_ S-27 Virus destroyed. 01899_ Penetrated by Slug. Map ----- +----------------------------------------------------+ | | | | | | | ?????????????????????????????????????????????????? | | ?????????????????????????????????????????????????? | | ?????????????????????????????????????????????????? | | ?????????????????????????????????????????????????? | | ?????????????????????????????????????????????????? | | ?????????????????????????????????????????????????? | | ?????????????????????????????????????????????????? | | ?????????????????????????????????????????????????? | | ?????????????????????????????????????????????????? | | ?????????????????????????????????????????????????? | | ?????????????????????????????????????????????????? | | ?????????????????????????????????????????????????? | | ?????????????????????????????????????????????????? | | ?????????????????????????????????????????????????? | | ?????????????????????????????????????????????????? | | ?????????????????????????????????????????????????? | | ?????????????????????????????????????????????????? | | ?????????????????????????????????????????????????? | | ????????????###??????????????????????????????????? | | ???????????## ##?????####????????????????????????? | | ???????????# ####### ##???????????????????????? | | ????#####??# ## #####?????? ???????????? | | ???## ##?## @ ##### ???????????? | | #### #??## ??????????? | | # ###???## #????????? | | #??????#### #????????? | | ####?????????##sss ## ??????? | | #?????????????##s%p ##?? ??????? | | ####???????????# h ##???? ??????? | | #??????????##h #?????? ??????? | | #### #?????????## #???????# ???????? | | ##?# #???####### #????????? ## ???????? | | ### #???# ## #??????????#??#????????? | | ## ###?# # #??????????????????????? | | ## ### #??????????????????????? | | ## ## ##??????????????????????? | | ?# # #### #???????????????????????? | | ?# ## #??# #???????????????????????? | | ?## ## #??# ??????????????????????? | | ??## #### #?# ?????????????????????? | | ???## #??# #??# ????????????????????? | | ##### ##?# #??# #???????????????????? | | ## ####???# #???????????????????? | | ## #??????? ???????????????????? | | ##### ### #???????# ??????????????????? | | """# #?# ##????????#### ?????????????????? | | """# #? ##?????????????##????????????????? | +----------------------------------------------------+ Best States ------------- Heat Dissipation 40 Energy Generation 31 Energy Capacity 520 Matter Stores 252 Matter Capacity 300 Sight Range 20 Terrain Scan Density 10 ECM Strength 1 Jamming Range 12 Armor Coverage 150 Evasion (%) 63 Melee Accuracy 5 Recoil Reduction 1 Item Schematics ----------------- Xenon Bombardment Thruster | -6/Factory | Scanalyzed Robot Schematics ------------------ None Fabricated ------------ Nothing Alien Tech Used ----------------- None Achievements -------------- None Challenges ------------ None Game ------ Seed ThermalActiveWeb Manual? 0 Play Time 00:46:29 Cumulative 34.4 hours Start 2024.05.28 @ 10:30:41 End 2024.05.28 @ 11:13:49 Sessions 1 Manual Loads 0 Difficulty Rogue Special Mode None Game No. 70 Rogue 70 Adventurer 0 Explorer 0 Win Type - Total 0 Types 0/0/0/0/0/0/0/0/0 Lore% 20 Gallery% 31 Achievement% 27 Wizard Run 0 Options --------- Layout 1 ASCII 0 Keyboard 0 Movement Numpad Keybinds 0 Fullscreen 1 Font 24/Smallcaps Map View 50x35 Zoom Use 0% Tactical HUD 1 Map Filters NONE Filters NONE Steam 1 RUN: aaefd487-022d-403e-88f0-0b7f4ff35e0d